[Event "IMSA Rapid Women 2019"]
[Site "Hengshui"]
[Date "2019.05.16"]
[Round "11.9"]
[White "Stefanova, Antoaneta"]
[Black "Kosteniuk, Alexandra"]
[Result "1/2-1/2"]
[ECO "A05"]
[WhiteElo "2470"]
[BlackElo "2546"]
[Annotator "ChessBase"]
[PlyCount "99"]
[EventDate "2019.05.14"]
[EventType "rapid"]
[EventCountry "CHN"]
[SourceTitle "playchess.com"]
[Source "ChessBase"]
[SourceQuality "1"]
[TimeControl "900+10"]

1. Nf3 {[%emt 0:00:00]} Nf6 {[%emt 0:00:00]} 2. g3 {[%emt 0:00:00]} b6 {[%emt 0:00:00]} 3. Bg2 {[%emt 0:00:04]} Bb7 {[%emt 0:00:00]} 4. O-O {[%emt 0:00:16]} e6 {[%emt 0:00:00]} 5. d3 {[%emt 0:00:44]} d5 {[%emt 0:00:05]} 6. Nbd2 {[%emt 0:00:53]} Be7 {[%emt 0:00:03]} 7. e4 {[%emt 0:00:07]} dxe4 {[%emt 0:00:20]} 8. Ng5 {[%emt 0:00:29]} O-O {[%emt 0:00:46]} 9. Ndxe4 {[%emt 0:01:49]} Nxe4 {[%emt 0:00:05]} 10. Nxe4 {[%emt 0:00:02]} Nc6 {[%emt 0:00:01]} 11. f4 {[%emt 0:00:22]} Rb8 {[%emt 0:00:15]} 12. Re1 {[%emt 0:02:01]} Nb4 {[%emt 0:00:23]} 13. Qe2 {[%emt 0:04:03]} Nd5 {[%emt 0:00:23]} 14. Bd2 {[%emt 0:00:14]} c5 {[%emt 0:00:36]} 15. a3 {[%emt 0:00:21]} Qd7 {[%emt 0:00:42]} 16. c4 {[%emt 0:00:08]} Nf6 {[%emt 0:00:46]} 17. Bc3 {[%emt 0:00:01]} Nxe4 {[%emt 0:00:06]} 18. dxe4 {[%emt 0:00:05]} Rfd8 {[%emt 0:00:03]} 19. Rad1 {[%emt 0:00:51]} Qa4 {[%emt 0:00:36]} 20. f5 {[%emt 0:00:50]} Rxd1 {[%emt 0:01:56]} 21. Rxd1 {[%emt 0:00:36]} exf5 {[%emt 0:00:16]} 22. exf5 {[%emt 0:00:01]} Bxg2 {[%emt 0:00:02]} 23. Kxg2 {[%emt 0:00:01]} Bf8 {[%emt 0:00:26]} 24. Rd2 {[%emt 0:01:02]} Re8 {[%emt 0:00:34]} 25. Qg4 {[%emt 0:00:10]} h5 {[%emt 0:01:31]} 26. Qf4 {[%emt 0:00:29]} Qc6+ {[%emt 0:00:01]} 27. Qf3 {[%emt 0:00:04]} Qh6 {[%emt 0:00:01]} 28. Re2 {[%emt 0:01:50]} Rxe2+ {[%emt 0:00:27]} 29. Qxe2 {[%emt 0:00:02]} Qc6+ {[%emt 0:00:37]} 30. Qf3 {[%emt 0:00:08]} Qa4 31. Qe2 {[%emt 0:00:28]} Qc6+ {[%emt 0:00:03]} 32. Kg1 {[%emt 0:00:06]} Qa4 {[%emt 0:00:39]} 33. Qd3 {[%emt 0:00:37]} a6 {[%emt 0:00:07]} 34. Kg2 {[%emt 0:00:08]} b5 {[%emt 0:00:10]} 35. cxb5 {[%emt 0:00:02]} axb5 {[%emt 0:00:01]} 36. Qe2 {[%emt 0:00:17]} b4 {[%emt 0:00:18]} 37. axb4 {[%emt 0:00:02]} cxb4 {[%emt 0:00:02]} 38. Bd4 {[%emt 0:00:21]} Qc6+ {[%emt 0:00:53]} 39. Qf3 {[%emt 0:00:12]} Qc2+ {[%emt 0:00:27]} 40. Kh3 {[%emt 0:00:03]} Qd2 {[%emt 0:00:14]} 41. Qe4 {[%emt 0:00:33]} Be7 {[%emt 0:00:58]} 42. Bxg7 {[%emt 0:00:42]} Kxg7 {[%emt 0:00:02]} 43. Qxe7 {[%emt 0:00:01]} Qxb2 {[%emt 0:00:02]} 44. Qg5+ {[%emt 0:00:06]} Kf8 {[%emt 0:00:25]} 45. f6 {[%emt 0:00:15]} Qb3 {[%emt 0:00:01]} 46. Qc5+ {[%emt 0:00:10]} Kg8 {[%emt 0:00:01]} 47. Qg5+ {[%emt 0:00:35]} Kf8 {[%emt 0:00:01]} 48. Qc5+ {[%emt 0:00:01]} Kg8 {[%emt 0:00:01]} 49. Qg5+ {[%emt 0:00:24]} Kf8 {[%emt 0:00:01]} 50. Qc5+ {[%emt 0:00:07]} 1/2-1/2

[Event "IMSA Rapid Women 2019"]
[Site "Hengshui"]
[Date "2019.05.16"]
[Round "11.10"]
[White "Tan, Zhongyi"]
[Black "Bodnaruk, Anastasia"]
[Result "1-0"]
[ECO "A21"]
[WhiteElo "2513"]
[BlackElo "2431"]
[Annotator "RC"]
[PlyCount "179"]
[EventDate "2019.05.14"]
[EventType "rapid"]
[EventCountry "CHN"]
[SourceTitle "playchess.com"]
[Source "ChessBase"]
[SourceQuality "1"]
[TimeControl "900+10"]

1. c4 {[%emt 0:00:00]} e5 {[%emt 0:00:00]} 2. Nc3 {[%emt 0:00:00]} d6 {[%emt 0:00:00]} 3. Nf3 {[%emt 0:00:12]} f5 {[%emt 0:00:04]} 4. g3 {[%emt 0:00:02]} g6 {[%emt 0:00:58]} 5. d4 {[%emt 0:00:15]} e4 {[%emt 0:00:06]} 6. Bg5 {[%emt 0:00:17]} Be7 {[%emt 0:00:53]} 7. Bxe7 {[%emt 0:00:03]} Qxe7 {[%emt 0:00:01]} 8. Nh4 {[%emt 0:00:22]} Nf6 {[%emt 0:00:24]} 9. Ng2 {[%emt 0:00:24]} Be6 {[%emt 0:00:26]} 10. e3 {[%emt 0:00:17]} Bf7 {[%emt 0:00:36]} 11. h4 {[%emt 0:00:03]} c6 {[%emt 0:00:38]} 12. Be2 {[%emt 0:01:03]} Nbd7 {[%emt 0:00:08]} 13. b3 {[%emt 0:00:23]} O-O {[%emt 0:00:23]} 14. Nf4 {[%emt 0:00:09]} h5 {[%emt 0:01:50]} 15. Qd2 {[%emt 0:00:11]} Kg7 {[%emt 0:00:57]} 16. Rb1 {[%emt 0:00:44]} Rfd8 {[%emt 0:00:33]} 17. Qc2 {[%emt 0:00:45]} Rac8 {[%emt 0:02:50]} 18. b4 {[%emt 0:00:07]} Nb6 {[%emt 0:00:31]} 19. Na4 {[%emt 0:00:18]} Nxa4 {[%emt 0:01:20]} 20. Qxa4 {[%emt 0:00:02]} b6 {[%emt 0:00:09]} 21. Kf1 {[%emt 0:01:20]} c5 {[%emt 0:00:21]} 22. bxc5 {[%emt 0:00:09]} dxc5 {[%emt 0:00:02]} 23. d5 {[%emt 0:00:06]} Rc7 {[%emt 0:01:23]} 24. Qc2 {[%emt 0:00:14]} Rd6 {[%emt 0:00:57]} 25. Qc3 {[%emt 0:00:14]} Rc8 {[%emt 0:00:31]} 26. Kg2 {[%emt 0:00:08]} Re8 {[%emt 0:00:06]} 27. Rb3 {[%emt 0:00:25]} Kh6 {[%emt 0:00:29]} 28. a4 {[%emt 0:00:02]} a5 {[%emt 0:00:23]} 29. Nh3 {[%emt 0:00:48]} Qe5 {[%emt 0:00:10]} 30. Ng5 {[%emt 0:00:16]} Qxc3 {[%emt 0:00:39]} 31. Rxc3 {[%emt 0:00:01]} Re7 {[%emt 0:00:19]} 32. Bd1 {[%emt 0:00:09]} Nd7 {[%emt 0:00:27]} 33. f3 {[%emt 0:01:05]} exf3+ {[%emt 0:00:11]} 34. Bxf3 {[%emt 0:00:02]} Nf6 {[%emt 0:00:49]} 35. Re1 {[%emt 0:00:14]} Be8 {[%emt 0:00:26]} 36. Ra3 {[%emt 0:00:13]} Bd7 {[%emt 0:00:18]} 37. e4 {[%emt 0:00:24]} fxe4 {[%emt 0:00:02]} 38. Bxe4 {[%emt 0:00:02]} Ng4 {[%emt 0:00:38]} 39. Rf3 {[%emt 0:03:17]} Kg7 {[%emt 0:00:01]} 40. Rf4 {[%emt 0:01:17]} Rf6 {[%emt 0:00:20]} 41. Rff1 {[%emt 0:02:25]} Bxa4 {[%emt 0:00:11]} 42. Ne6+ {[%emt 0:00:05]} Rfxe6 {[%emt 0:00:08]} 43. dxe6 {[%emt 0:00:04]} Rxe6 {[%emt 0:00:01]} 44. Kg1 {[%emt 0:00:13]} Bb3 {[%emt 0:00:14]} 45. Bd5 {[%emt 0:00:06]} Rxe1 {[%emt 0:00:09]} 46. Rxe1 {[%emt 0:00:01]} b5 {[%emt 0:00:23]} 47. Re7+ {[%emt 0:00:14]} Kf6 {[%emt 0:00:03]} 48. Re6+ {[%emt 0:00:10]} Kf5 {[%emt 0:00:08]} 49. Rc6 {[%emt 0:00:26]} bxc4 {[%emt 0:00:06]} 50. Rxc5 {[%emt 0:00:25]} Ne5 {[%emt 0:00:16]} 51. Rxa5 {[%emt 0:00:01]} Kf6 {[%emt 0:00:13]} 52. Kf2 {[%emt 0:00:10]} Bc2 {[%emt 0:00:13]} 53. Ke3 {[%emt 0:00:14]} Bd3 {[%emt 0:00:09]} 54. Kd4 {[%emt 0:00:16]} Ng4 {[%emt 0:00:14]} 55. Ra6+ {[%emt 0:00:16]} Kg7 {[%emt 0:00:05]} 56. Ra7+ {[%emt 0:00:04]} Kh6 {[%emt 0:00:09]} 57. Bxc4 {[%emt 0:00:15]} Bxc4 {[%emt 0:00:01]} 58. Kxc4 {[%emt 0:00:01]} Ne3+ {[%emt 0:00:10]} 59. Kc5 {[%emt 0:00:14]} Nf5 {[%emt 0:00:10]} 60. Ra3 {[%emt 0:00:01]} g5 {[%emt 0:00:23]} 61. Ra6+ {[%emt 0:00:23]} Kg7 {[%emt 0:00:01]} 62. hxg5 {[%emt 0:00:05]} Nxg3 {[%emt 0:00:02]} 63. Kd5 {[%emt 0:00:08]} Nf5 {[%emt 0:00:28]} 64. Ke5 {[%emt 0:00:05]} Ne3 {[%emt 0:00:04]} 65. Ke4 {[%emt 0:00:09]} Ng2 {[%emt 0:00:17]} 66. Kf3 {[%emt 0:00:10]} Nh4+ {[%emt 0:00:02]} 67. Kg3 {[%emt 0:00:07]} Ng6 {[%emt 0:00:09]} 68. Ra7+ {[%emt 0:00:01]} Kg8 {[%emt 0:00:11]} 69. Kf3 {[%emt 0:00:01]} Kf8 {[%emt 0:00:18]} 70. Ke4 {[%emt 0:00:29]} Ne7 {[%emt 0:00:04]} 71. Kf4 {[%emt 0:00:22]} Kf7 {[%emt 0:00:09]} 72. Rb7 {[%emt 0:00:13]} Ke6 {[%emt 0:00:04]} 73. Rb6+ {[%emt 0:00:02]} Kf7 {[%emt 0:00:01]} 74. Rh6 {[%emt 0:00:10]} Ng6+ {[%emt 0:00:14]} 75. Ke4 {[%emt 0:00:31]} Ne7 {[%emt 0:00:19]} 76. Rh7+ {[%emt 0:00:03]} Kf8 {[%emt 0:00:11]} 77. Rxh5 {[%emt 0:00:03]} Kg7 {[%emt 0:00:02]} 78. Rh6 {[%emt 0:00:06]} Ng6 {[%emt 0:00:03]} 79. Kf5 {[%emt 0:00:06]} Ne7+ {[%emt 0:00:01]} 80. Ke5 {[%emt 0:00:19]} Ng6+ {[%emt 0:00:01]} 81. Ke4 {[%emt 0:00:00]} Kf7 {[%emt 0:00:16]} 82. Rh7+ {[%emt 0:00:00]} Ke6 {[%emt 0:00:01]} 83. Ra7 {[%emt 0:00:01]} Ne7 {[%emt 0:00:01]} 84. Ra6+ {[%emt 0:00:02]} Kf7 {[%emt 0:00:01]} 85. Kf4 {[%emt 0:00:04]} Ng6+ {[%emt 0:00:17]} 86. Kg4 {[%emt 0:00:03]} Ne7 {[%emt 0:00:09]} 87. Kh5 {[%emt 0:00:02]} Kg8 {[%emt 0:00:08]} 88. Ra8+ {[%emt 0:00:04]} Kf7 {[%emt 0:00:01]} 89. Ra7 {[%emt 0:00:01]} Ke6 {[%emt 0:00:01]} 90. Rxe7+ {[%emt 0:00:07] Ke5} 1-0

[Event "IMSA Rapid Women 2019"]
[Site "Hengshui"]
[Date "2019.05.16"]
[Round "11.11"]
[White "Muzychuk, Mariya"]
[Black "Paehtz, Elisabeth"]
[Result "1/2-1/2"]
[ECO "A40"]
[WhiteElo "2563"]
[BlackElo "2470"]
[Annotator "ChessBase"]
[PlyCount "103"]
[EventDate "2019.05.14"]
[EventType "rapid"]
[EventCountry "CHN"]
[SourceTitle "playchess.com"]
[Source "ChessBase"]
[SourceQuality "1"]
[TimeControl "900+10"]

1. d4 {[%emt 0:00:00]} e6 {[%emt 0:00:00]} 2. c4 {[%emt 0:00:00]} b6 {[%emt 0:00:00]} 3. Nc3 {[%emt 0:00:09]} Bb4 {[%emt 0:00:00]} 4. Qb3 {[%emt 0:00:40]} c5 {[%emt 0:00:08]} 5. Nf3 {[%emt 0:00:47]} Nc6 {[%emt 0:00:21]} 6. a3 {[%emt 0:00:34]} Ba5 {[%emt 0:00:29]} 7. e3 {[%emt 0:00:23]} Nf6 {[%emt 0:00:13]} 8. d5 {[%emt 0:00:54]} Ne7 {[%emt 0:00:47]} 9. dxe6 {[%emt 0:01:01]} fxe6 {[%emt 0:00:02]} 10. Be2 {[%emt 0:00:05]} Bb7 {[%emt 0:01:26]} 11. O-O {[%emt 0:00:03]} O-O {[%emt 0:00:05]} 12. Rd1 {[%emt 0:00:15]} Bxc3 {[%emt 0:00:43]} 13. Qxc3 {[%emt 0:00:21]} Nf5 {[%emt 0:00:24]} 14. Ne5 {[%emt 0:01:26]} d6 {[%emt 0:00:45]} 15. Bf3 {[%emt 0:00:27]} Bxf3 {[%emt 0:00:28]} 16. Nxf3 {[%emt 0:00:01]} Qc8 {[%emt 0:01:53]} 17. Qd3 {[%emt 0:01:17]} e5 {[%emt 0:00:21]} 18. Ng5 {[%emt 0:01:03]} Qd7 {[%emt 0:01:02]} 19. b4 {[%emt 0:00:40]} h6 {[%emt 0:01:25]} 20. Ne4 {[%emt 0:00:02]} Nxe4 {[%emt 0:00:01]} 21. Qxe4 {[%emt 0:00:01]} Qa4 {[%emt 0:00:09]} 22. Bd2 {[%emt 0:01:05]} Rac8 {[%emt 0:01:09]} 23. Rdc1 {[%emt 0:00:57]} Qd7 {[%emt 0:01:02]} 24. Qd5+ {[%emt 0:00:34]} Kh8 {[%emt 0:00:34]} 25. Bc3 {[%emt 0:00:28]} Ne7 {[%emt 0:00:09]} 26. Qe4 {[%emt 0:00:14]} Qe6 {[%emt 0:00:38]} 27. b5 {[%emt 0:00:15]} Ng8 {[%emt 0:00:09]} 28. Rd1 {[%emt 0:00:38]} Nf6 {[%emt 0:00:03]} 29. Qd3 {[%emt 0:00:04]} Rcd8 {[%emt 0:00:05]} 30. e4 {[%emt 0:00:30]} Nh5 {[%emt 0:00:02]} 31. Bd2 {[%emt 0:00:11]} g5 {[%emt 0:00:11]} 32. a4 {[%emt 0:00:17]} Qf6 {[%emt 0:00:40]} 33. f3 {[%emt 0:00:09]} Ng7 {[%emt 0:00:07]} 34. a5 {[%emt 0:00:12]} Ne6 {[%emt 0:01:23]} 35. axb6 {[%emt 0:00:06]} axb6 {[%emt 0:00:01]} 36. Be3 {[%emt 0:00:54]} Nd4 {[%emt 0:00:11]} 37. Ra6 {[%emt 0:01:41]} Rb8 {[%emt 0:00:02]} 38. Rda1 {[%emt 0:00:22]} Rb7 {[%emt 0:00:26]} 39. Ra8 {[%emt 0:00:37]} Kg7 {[%emt 0:00:16]} 40. Rxf8 {[%emt 0:00:04]} Qxf8 {[%emt 0:00:02]} 41. h3 {[%emt 0:01:15]} Qf7 {[%emt 0:00:02]} 42. Bxd4 {[%emt 0:00:30]} exd4 {[%emt 0:00:34]} 43. Ra6 {[%emt 0:00:07]} Qf4 {[%emt 0:00:06]} 44. Qa3 {[%emt 0:00:20]} Kg6 {[%emt 0:00:48]} 45. Ra8 {[%emt 0:00:08]} Kh5 {[%emt 0:00:37]} 46. Rh8 {[%emt 0:00:22]} Qf6 {[%emt 0:00:33]} 47. Re8 {[%emt 0:00:21]} Qf7 {[%emt 0:00:11]} 48. Rd8 {[%emt 0:00:11]} Ra7 {[%emt 0:00:13]} 49. Qc1 {[%emt 0:00:02]} Rd7 {[%emt 0:01:00]} 50. Ra8 {[%emt 0:00:02]} Ra7 {[%emt 0:00:29]} 51. Rd8 {[%emt 0:00:01]} Rd7 {[%emt 0:00:02]} 52. Ra8 {[%emt 0:00:06]} 1/2-1/2

[Event "IMSA Rapid Women 2019"]
[Site "Hengshui"]
[Date "2019.05.16"]
[Round "11.12"]
[White "Gunina, Valentina"]
[Black "Krush, Irina"]
[Result "1-0"]
[ECO "B53"]
[WhiteElo "2506"]
[BlackElo "2422"]
[Annotator "ChessBase"]
[PlyCount "87"]
[EventDate "2019.05.14"]
[EventType "rapid"]
[EventCountry "CHN"]
[SourceTitle "playchess.com"]
[Source "ChessBase"]
[SourceQuality "1"]
[TimeControl "900+10"]

1. e4 {[%emt 0:00:00]} c5 {[%emt 0:00:00]} 2. Nf3 {[%emt 0:00:00]} d6 {[%emt 0:00:00]} 3. d4 {[%emt 0:00:00]} cxd4 {[%emt 0:00:00]} 4. Qxd4 {[%emt 0:00:00]} a6 {[%emt 0:00:17]} 5. Be2 {[%emt 0:00:17]} Nc6 {[%emt 0:00:07]} 6. Qd3 {[%emt 0:00:14]} g6 {[%emt 0:00:27]} 7. O-O {[%emt 0:00:09]} Bg7 {[%emt 0:00:02]} 8. c4 {[%emt 0:00:05]} Nf6 {[%emt 0:00:43]} 9. h3 {[%emt 0:00:03]} O-O {[%emt 0:00:19]} 10. Nc3 {[%emt 0:00:02]} Be6 {[%emt 0:00:24]} 11. Nd5 {[%emt 0:01:27]} Nd7 {[%emt 0:02:09]} 12. Rd1 {[%emt 0:02:44]} Rc8 {[%emt 0:00:34]} 13. Qe3 {[%emt 0:04:12]} Nde5 {[%emt 0:01:30]} 14. Rb1 {[%emt 0:01:09]} Nxf3+ {[%emt 0:00:18]} 15. Bxf3 {[%emt 0:00:03]} Ne5 {[%emt 0:00:33]} 16. b3 {[%emt 0:00:43]} Nxf3+ {[%emt 0:00:06]} 17. Qxf3 {[%emt 0:00:01]} b5 {[%emt 0:01:09]} 18. cxb5 {[%emt 0:00:23]} axb5 {[%emt 0:00:02]} 19. Bg5 {[%emt 0:00:02]} Re8 {[%emt 0:04:11]} 20. b4 {[%emt 0:00:49]} Bxd5 {[%emt 0:01:10]} 21. Rxd5 {[%emt 0:00:05]} Qd7 {[%emt 0:00:22]} 22. Qd3 {[%emt 0:01:14]} Rb8 {[%emt 0:01:40]} 23. e5 {[%emt 0:01:44]} Qa7 {[%emt 0:00:01]} 24. exd6 {[%emt 0:00:05]} exd6 {[%emt 0:00:02]} 25. Qd2 {[%emt 0:00:16]} Be5 {[%emt 0:00:31]} 26. Be3 {[%emt 0:00:30]} Qe7 {[%emt 0:00:28]} 27. Qd3 {[%emt 0:00:36]} Qb7 {[%emt 0:00:41]} 28. Rd1 {[%emt 0:00:23]} Rec8 {[%emt 0:00:13]} 29. f4 {[%emt 0:00:59]} Bc3 {[%emt 0:00:29]} 30. a3 {[%emt 0:00:56]} Qa6 {[%emt 0:00:13]} 31. Rxd6 {[%emt 0:00:02]} Qxa3 {[%emt 0:00:01]} 32. Bc5 {[%emt 0:00:01]} Bb2 {[%emt 0:01:02]} 33. Qd5 {[%emt 0:00:13]} Qc3 {[%emt 0:00:31]} 34. f5 {[%emt 0:00:20]} Qc4 {[%emt 0:00:12]} 35. fxg6 {[%emt 0:00:27]} Qxd5 {[%emt 0:00:02]} 36. gxh7+ {[%emt 0:00:02]} Kxh7 {[%emt 0:00:02]} 37. R1xd5 {[%emt 0:00:02]} Rb7 {[%emt 0:00:21]} 38. Rh5+ {[%emt 0:00:04]} Kg7 {[%emt 0:00:04]} 39. Rg5+ {[%emt 0:00:03]} Kh7 {[%emt 0:00:05]} 40. Rdd5 {[%emt 0:00:16]} Rc6 {[%emt 0:00:06]} 41. Be3 {[%emt 0:00:12]} Re6 {[%emt 0:00:25]} 42. Bd2 {[%emt 0:00:27]} Re2 {[%emt 0:00:14]} 43. Rg4 {[%emt 0:00:06]} Ra7 {[%emt 0:00:12]} 44. Rh5# {[%emt 0:00:03]} 1-0

[Event "IMSA Rapid Women 2019"]
[Site "Hengshui"]
[Date "2019.05.16"]
[Round "11.13"]
[White "Abdumalik, Zhansaya"]
[Black "Ushenina, Anna"]
[Result "0-1"]
[ECO "B18"]
[WhiteElo "2464"]
[BlackElo "2442"]
[Annotator "RC"]
[PlyCount "146"]
[EventDate "2019.05.14"]
[EventType "rapid"]
[EventCountry "CHN"]
[SourceTitle "playchess.com"]
[Source "ChessBase"]
[SourceQuality "1"]
[TimeControl "900+10"]

1. e4 {[%emt 0:00:00]} c6 {[%emt 0:00:00]} 2. d4 {[%emt 0:00:00]} d5 {[%emt 0:00:00]} 3. Nd2 {[%emt 0:00:00]} dxe4 {[%emt 0:00:00]} 4. Nxe4 {[%emt 0:00:00]} Bf5 {[%emt 0:00:00]} 5. Ng3 {[%emt 0:00:00]} Bg6 {[%emt 0:00:00]} 6. h4 {[%emt 0:00:00]} h6 {[%emt 0:00:00]} 7. Nf3 {[%emt 0:00:00]} Nf6 {[%emt 0:00:02]} 8. Ne5 {[%emt 0:00:50]} Bh7 {[%emt 0:00:01]} 9. Bd3 {[%emt 0:00:33]} Bxd3 {[%emt 0:00:08]} 10. Qxd3 {[%emt 0:00:02]} e6 {[%emt 0:00:10]} 11. Bf4 {[%emt 0:00:33]} Qa5+ {[%emt 0:00:14]} 12. c3 {[%emt 0:00:29]} Nbd7 {[%emt 0:01:32]} 13. O-O {[%emt 0:00:11]} Be7 {[%emt 0:00:23]} 14. b4 {[%emt 0:00:38]} Qd8 {[%emt 0:02:01]} 15. Nxd7 {[%emt 0:01:41]} Qxd7 {[%emt 0:00:29]} 16. Be5 {[%emt 0:00:07]} O-O {[%emt 0:00:48]} 17. Rae1 {[%emt 0:01:55]} a5 {[%emt 0:00:33]} 18. a3 {[%emt 0:03:52]} axb4 {[%emt 0:00:04]} 19. axb4 {[%emt 0:00:00]} Ra3 {[%emt 0:00:33]} 20. Bxf6 {[%emt 0:00:43]} Bxf6 {[%emt 0:00:02]} 21. Re4 {[%emt 0:00:01]} Qd5 {[%emt 0:01:05]} 22. Ne2 {[%emt 0:00:12]} e5 {[%emt 0:01:15]} 23. Rg4 {[%emt 0:00:39]} exd4 {[%emt 0:03:47]} 24. Nxd4 {[%emt 0:00:02]} Re8 {[%emt 0:00:26]} 25. Rd1 {[%emt 0:00:48]} Qh5 {[%emt 0:01:29]} 26. Qf5 {[%emt 0:00:36]} Qxf5 {[%emt 0:00:06]} 27. Nxf5 {[%emt 0:00:01]} h5 {[%emt 0:00:39]} 28. Rf4 {[%emt 0:01:47]} Rxc3 {[%emt 0:00:04]} 29. g3 {[%emt 0:00:01]} Rd8 {[%emt 0:01:15]} 30. Re1 {[%emt 0:00:58]} Kf8 {[%emt 0:00:51]} 31. Kg2 {[%emt 0:00:09]} Rcd3 {[%emt 0:00:05]} 32. Rc4 {[%emt 0:01:09]} g6 {[%emt 0:00:10]} 33. Ne3 {[%emt 0:00:01]} R8d4 {[%emt 0:00:48]} 34. Rb1 {[%emt 0:00:20]} Rd2 {[%emt 0:00:37]} 35. b5 {[%emt 0:00:15]} Rxc4 {[%emt 0:00:46]} 36. Nxc4 {[%emt 0:00:01]} Rc2 {[%emt 0:00:04]} 37. Ne3 {[%emt 0:00:44]} Rb2 {[%emt 0:00:04]} 38. Rxb2 {[%emt 0:00:40]} Bxb2 {[%emt 0:00:01]} 39. Nc4 {[%emt 0:00:00]} Bd4 {[%emt 0:00:28]} 40. bxc6 {[%emt 0:00:09]} bxc6 {[%emt 0:00:01]} 41. Na5 {[%emt 0:00:16]} c5 {[%emt 0:00:01]} 42. Nc6 {[%emt 0:00:11]} Bc3 {[%emt 0:00:13]} 43. Kf3 {[%emt 0:00:01]} Ke8 {[%emt 0:00:23]} 44. g4 {[%emt 0:00:06]} Kd7 {[%emt 0:00:20]} 45. Na7 {[%emt 0:00:01]} Bf6 {[%emt 0:00:12]} 46. g5 {[%emt 0:01:06]} Bc3 {[%emt 0:00:17]} 47. Nb5 {[%emt 0:00:02]} Bb2 {[%emt 0:00:06]} 48. Ke4 {[%emt 0:00:10]} Kc6 {[%emt 0:00:05]} 49. Na7+ {[%emt 0:00:01]} Kb6 {[%emt 0:00:13]} 50. Nc8+ {[%emt 0:00:02]} Kb5 {[%emt 0:00:05]} 51. Nd6+ {[%emt 0:00:02]} Kb4 {[%emt 0:00:02]} 52. Kd3 {[%emt 0:00:04]} Bd4 {[%emt 0:00:04]} 53. f4 {[%emt 0:00:20]} Bf2 {[%emt 0:00:01]} 54. Nxf7 {[%emt 0:00:08]} c4+ {[%emt 0:00:11]} 55. Kc2 {[%emt 0:00:01]} Bxh4 {[%emt 0:00:01]} 56. Nh8 {[%emt 0:01:10]} Bg3 {[%emt 0:00:04]} 57. f5 {[%emt 0:00:21]} gxf5 {[%emt 0:00:10]} 58. Nf7 {[%emt 0:00:01]} Bh4 {[%emt 0:00:46]} 59. g6 {[%emt 0:00:21]} Bf6 {[%emt 0:00:02]} 60. Nd6 {[%emt 0:00:02]} f4 {[%emt 0:00:13]} 61. Kd2 {[%emt 0:00:02]} h4 {[%emt 0:00:08]} 62. Ne4 {[%emt 0:00:02]} Bd4 {[%emt 0:00:26]} 63. Ke2 {[%emt 0:00:10]} h3 {[%emt 0:00:05]} 64. Kf3 {[%emt 0:00:03]} c3 {[%emt 0:00:05]} 65. Nf2 {[%emt 0:00:13]} c2 {[%emt 0:00:05]} 66. Nd3+ {[%emt 0:00:01]} Kc4 {[%emt 0:00:10]} 67. Nc1 {[%emt 0:00:03]} Bg7 {[%emt 0:00:22]} 68. Ne2 {[%emt 0:00:04]} Kb3 {[%emt 0:00:10]} 69. Nc1+ {[%emt 0:00:09]} Kb2 {[%emt 0:00:04]} 70. Nd3+ {[%emt 0:00:01]} Kb1 {[%emt 0:00:03]} 71. Kf2 {[%emt 0:00:15]} c1=Q {[%emt 0:00:05]} 72. Nxc1 {[%emt 0:00:01]} Kxc1 {[%emt 0:00:00]} 73. Kg1 {[%emt 0:00:01]} f3 {[%emt 0:00:20]} 0-1

[Event "IMSA Rapid Women 2019"]
[Site "Hengshui"]
[Date "2019.05.16"]
[Round "11.16"]
[White "Lei, Tingjie"]
[Black "Koneru, Humpy"]
[Result "1/2-1/2"]
[ECO "C42"]
[WhiteElo "2507"]
[BlackElo "2553"]
[Annotator "RC"]
[PlyCount "97"]
[EventDate "2019.05.14"]
[EventType "rapid"]
[EventCountry "CHN"]
[SourceTitle "playchess.com"]
[Source "ChessBase"]
[SourceQuality "1"]
[TimeControl "900+10"]

1. e4 {[%emt 0:00:00]} e5 {[%emt 0:00:00]} 2. Nf3 {[%emt 0:00:00]} Nf6 {[%emt 0:00:00]} 3. Nxe5 {[%emt 0:00:00]} d6 {[%emt 0:00:00]} 4. Nf3 {[%emt 0:00:00]} Nxe4 {[%emt 0:00:00]} 5. d4 {[%emt 0:00:00]} d5 {[%emt 0:00:00]} 6. Bd3 {[%emt 0:00:02]} Bd6 {[%emt 0:00:03]} 7. O-O {[%emt 0:00:03]} O-O {[%emt 0:00:03]} 8. c4 {[%emt 0:00:02]} c6 {[%emt 0:00:02]} 9. Qc2 {[%emt 0:00:04]} Na6 {[%emt 0:00:38]} 10. a3 {[%emt 0:00:02]} f5 {[%emt 0:00:38]} 11. b4 {[%emt 0:00:08]} Nc7 {[%emt 0:00:29]} 12. c5 {[%emt 0:00:09]} Be7 {[%emt 0:00:05]} 13. Ne5 {[%emt 0:00:04]} Ne6 {[%emt 0:01:03]} 14. f3 {[%emt 0:00:41]} Nxd4 {[%emt 0:01:18]} 15. Qb2 {[%emt 0:00:03]} Ne6 {[%emt 0:00:14]} 16. fxe4 {[%emt 0:03:58]} fxe4 {[%emt 0:00:03]} 17. Rxf8+ {[%emt 0:00:02]} Qxf8 {[%emt 0:00:17]} 18. Bxe4 {[%emt 0:01:15]} dxe4 {[%emt 0:00:11]} 19. Nd2 {[%emt 0:02:09]} Qd8 {[%emt 0:07:56]} 20. h3 {[%emt 0:04:01]} Qd5 {[%emt 0:00:16]} 21. Ndc4 {[%emt 0:00:10]} Bf6 {[%emt 0:02:21]} 22. Bd2 {[%emt 0:00:24]} Qd4+ {[%emt 0:00:38]} 23. Qxd4 {[%emt 0:00:10]} Nxd4 {[%emt 0:00:02]} 24. Re1 {[%emt 0:00:27]} Bf5 {[%emt 0:00:03]} 25. Bc3 {[%emt 0:00:35]} Nb5 {[%emt 0:00:06]} 26. Bb2 {[%emt 0:00:11]} Rd8 {[%emt 0:00:10]} 27. g4 {[%emt 0:01:01]} Be6 {[%emt 0:00:20]} 28. a4 {[%emt 0:01:11]} Bxc4 {[%emt 0:00:37]} 29. Nxc4 {[%emt 0:00:03]} Bxb2 {[%emt 0:00:19]} 30. axb5 {[%emt 0:00:13]} Bd4+ {[%emt 0:00:13]} 31. Kg2 {[%emt 0:00:02]} cxb5 {[%emt 0:00:11]} 32. Nd6 {[%emt 0:00:01]} b6 {[%emt 0:00:26]} 33. Rxe4 {[%emt 0:01:27]} bxc5 {[%emt 0:00:13]} 34. Nxb5 {[%emt 0:00:01]} a6 {[%emt 0:00:23]} 35. Nxd4 {[%emt 0:00:19]} cxd4 {[%emt 0:00:13]} 36. Kf2 {[%emt 0:00:02]} d3 {[%emt 0:00:29]} 37. Ke1 {[%emt 0:00:01]} d2+ {[%emt 0:00:05]} 38. Kd1 {[%emt 0:00:00]} Kf7 {[%emt 0:00:23]} 39. Rc4 {[%emt 0:00:13]} Rd6 {[%emt 0:00:19]} 40. Rc7+ {[%emt 0:00:01]} Kf6 {[%emt 0:00:17]} 41. Ra7 {[%emt 0:00:06]} h6 {[%emt 0:00:12]} 42. h4 {[%emt 0:00:44]} g6 {[%emt 0:00:15]} 43. Rh7 {[%emt 0:00:29]} Rd4 {[%emt 0:00:20]} 44. Rxh6 {[%emt 0:00:02]} Kg7 {[%emt 0:00:11]} 45. g5 {[%emt 0:00:02]} Rxb4 {[%emt 0:00:14]} 46. Kxd2 {[%emt 0:00:10]} Rg4 {[%emt 0:00:07]} 47. h5 {[%emt 0:00:07]} Rxg5 {[%emt 0:00:04]} 48. Rxg6+ {[%emt 0:00:02]} Rxg6 {[%emt 0:00:03]} 49. hxg6 {[%emt 0:00:01]} 1/2-1/2